[Event "2. Itzehoer Schach Open"]
[Site "Itzehoe, Germany"]
[Date "2023.04.29"]
[Round "1.9"]
[White "Carsten, Juergen"]
[Black "Fuhrmann, Bahne"]
[Result "0-1"]
[TimeControl "90 min / 40 Züge + 30 min + 30 Sek pro Zug"]
[WhiteElo "1780"]
[BlackElo "2035"]

1. e4 {[%clk 01:30:12]} {[%emt 00:00:48]} e5 {[%clk 01:30:53]} {[%emt
00:00:07]} 2. Bc4 {[%clk 01:30:32]} {[%emt 00:00:10]} Nf6 {[%clk 01:30:59]}
{[%emt 00:00:23]} 3. d3 {[%clk 01:30:14]} {[%emt 00:00:48]} Bc5 {[%clk
01:29:25]} {[%emt 00:02:05]} 4. Nf3 {[%clk 01:29:47]} {[%emt 00:00:57]} Nc6
{[%clk 01:29:37]} {[%emt 00:00:18]} 5. c3 {[%clk 01:29:40]} {[%emt 00:00:38]}
d6 {[%clk 01:29:56]} {[%emt 00:00:10]} 6. Bb3 {[%clk 01:28:13]} {[%emt
00:01:58]} a6 {[%clk 01:30:12]} {[%emt 00:00:14]} 7. h3 {[%clk 01:27:14]}
{[%emt 00:01:27]} Ba7 {[%clk 01:30:23]} {[%emt 00:00:19]} 8. Bg5 {[%clk
01:26:27]} {[%emt 00:01:17]} h6 {[%clk 01:30:33]} {[%emt 00:00:21]} 9. Bh4
{[%clk 01:26:02]} {[%emt 00:00:55]} g5 {[%clk 01:22:56]} {[%emt 00:08:07]} 10.
Bg3 {[%clk 01:25:25]} {[%emt 00:01:07]} Ne7 {[%clk 01:22:55]} {[%emt 00:00:31]}
11. Nbd2 {[%clk 01:22:47]} {[%emt 00:03:08]} Ng6 {[%clk 01:23:15]} {[%emt
00:00:09]} 12. Nc4 {[%clk 01:18:41]} {[%emt 00:04:36]} Nh5 {[%clk 01:17:54]}
{[%emt 00:05:51]} 13. Ncxe5 {[%clk 00:58:52]} {[%emt 00:20:20]} dxe5 {[%clk
01:03:15]} {[%emt 00:15:08]} 14. Nxe5 {[%clk 00:55:03]} {[%emt 00:04:20]} Qf6
{[%clk 00:58:02]} {[%emt 00:05:42]} 15. Bxf7+ {[%clk 00:51:40]} {[%emt
00:03:54]} Kd8 {[%clk 00:57:46]} {[%emt 00:00:45]} 16. Qxh5 {[%clk 00:46:26]}
{[%emt 00:05:43]} Nxe5 {[%clk 00:57:37]} {[%emt 00:00:40]} 17. Bxe5 {[%clk
00:45:25]} {[%emt 00:01:30]} Qxe5 {[%clk 00:57:57]} {[%emt 00:00:10]} 18. g3
{[%clk 00:43:53]} {[%emt 00:02:03]} Rf8 {[%clk 00:48:10]} {[%emt 00:10:16]} 19.
f4 {[%clk 00:38:28]} {[%emt 00:05:55]} Qf6 {[%clk 00:44:07]} {[%emt 00:04:33]}
20. Bb3 {[%clk 00:34:10]} {[%emt 00:04:49]} gxf4 {[%clk 00:44:11]} {[%emt
00:00:26]} 21. e5 {[%clk 00:29:15]} {[%emt 00:05:25]} Qg5 {[%clk 00:41:48]}
{[%emt 00:02:52]} 22. Qxg5+ {[%clk 00:27:48]} {[%emt 00:01:57]} hxg5 {[%clk
00:42:14]} {[%emt 00:00:04]} 23. gxf4 {[%clk 00:28:01]} {[%emt 00:00:18]} Rxf4
{[%clk 00:42:18]} {[%emt 00:00:26]} 24. O-O-O {[%clk 00:25:28]} {[%emt
00:03:03]} Bf2 {[%clk 00:42:27]} {[%emt 00:00:20]} 25. Bd5 {[%clk 00:22:12]}
{[%emt 00:03:46]} c6 {[%clk 00:41:07]} {[%emt 00:01:51]} 26. Be4 {[%clk
00:21:38]} {[%emt 00:01:03]} Be6 {[%clk 00:41:04]} {[%emt 00:00:33]} 27. Kb1
{[%clk 00:19:58]} {[%emt 00:02:11]} Ke7 {[%clk 00:41:21]} {[%emt 00:00:12]} 28.
Rdf1 {[%clk 00:19:27]} {[%emt 00:01:01]} Rh8 {[%clk 00:40:53]} {[%emt
00:00:58]} 29. Bg2 {[%clk 00:19:41]} {[%emt 00:00:16]} Bf5 {[%clk 00:40:44]}
{[%emt 00:00:40]} 30. Rd1 {[%clk 00:18:47]} {[%emt 00:01:24]} Ke6 {[%clk
00:41:02]} {[%emt 00:00:11]} 31. Ka1 {[%clk 00:17:13]} {[%emt 00:02:04]} Kxe5
{[%clk 00:41:21]} {[%emt 00:00:11]} 32. d4+ {[%clk 00:17:32]} {[%emt 00:00:12]}
Kd6 {[%clk 00:41:45]} {[%emt 00:00:05]} 33. Rdf1 {[%clk 00:15:05]} {[%emt
00:02:58]} Re8 {[%clk 00:41:37]} {[%emt 00:00:37]} 34. Rd1 {[%clk 00:13:40]}
{[%emt 00:01:55]} Re2 {[%clk 00:41:10]} {[%emt 00:00:57]} 35. Rhf1 {[%clk
00:12:59]} {[%emt 00:01:10]} Bh4 {[%clk 00:41:26]} {[%emt 00:00:14]} 36. Rxf4
{[%clk 00:12:06]} {[%emt 00:01:24]} gxf4 {[%clk 00:41:51]} {[%emt 00:00:05]} 37.
Bf3 {[%clk 00:12:22]} {[%emt 00:00:15]} Re1 {[%clk 00:41:36]} {[%emt 00:00:45]}
38. Rxe1 {[%clk 00:11:45]} {[%emt 00:01:06]} Bxe1 {[%clk 00:42:01]} {[%emt
00:00:05]} 39. Bg2 {[%clk 00:11:48]} {[%emt 00:00:27]} Bd3 {[%clk 00:42:22]}
{[%emt 00:00:09]} 40. Bf3 {[%clk 00:11:35]} {[%emt 00:00:44]} Bf1 {[%clk
00:42:45]} {[%emt 00:00:06]} 41. h4 {[%clk 00:10:55]} {[%emt 00:01:10]} Bxh4
{[%clk 00:43:06]} {[%emt 00:00:09]} 42. Kb1 {[%clk 00:11:08]} {[%emt 00:00:18]}
Bc4 {[%clk 00:43:28]} {[%emt 00:00:08]} 43. b3 {[%clk 00:11:00]} {[%emt
00:00:38]} Bd5 {[%clk 00:43:51]} {[%emt 00:00:07]} 44. Be2 {[%clk 00:08:35]}
{[%emt 00:02:55]} Bg2 {[%clk 00:44:15]} {[%emt 00:00:05]} 45. Bd3 {[%clk
00:06:22]} {[%emt 00:02:43]} Kd5 {[%clk 00:43:12]} {[%emt 00:01:33]} 46. Kc1
{[%clk 00:06:10]} {[%emt 00:00:42]} f3 {[%clk 00:43:33]} {[%emt 00:00:09]} 47.
Kd2 {[%clk 00:05:39]} {[%emt 00:01:01]} f2 {[%clk 00:43:58]} {[%emt 00:00:05]}
48. Ke3 {[%clk 00:05:47]} {[%emt 00:00:23]} f1=Q {[%clk 00:44:13]} {[%emt
00:00:15]} 49. c4+ {[%clk 00:05:56]} {[%emt 00:00:21]} Ke6 {[%clk 00:44:36]}
{[%emt 00:00:06]} 50. d5+ {[%clk 00:05:11]} {[%emt 00:01:15]} cxd5 {[%clk
00:45:01]} {[%emt 00:00:06]} 51. cxd5+ {[%clk 00:05:12]} {[%emt 00:00:29]} Kxd5
{[%clk 00:45:26]} {[%emt 00:00:05]} 52. Bxf1 {[%clk 00:05:15]} {[%emt
00:00:27]} Bxf1 {[%clk 00:45:50]} {[%emt 00:00:06]} 53. Kd2 {[%clk 00:05:27]}
{[%emt 00:00:17]} Kd4 {[%clk 00:46:10]} {[%emt 00:00:11]} 54. b4 {[%clk
00:05:32]} {[%emt 00:00:25]} Bd3 {[%clk 00:46:10]} {[%emt 00:00:29]} 55. a4
{[%clk 00:05:50]} {[%emt 00:00:12]} Bg5+ {[%clk 00:46:30]} {[%emt 00:00:11]} 56.
Kd1 {[%clk 00:04:56]} {[%emt 00:01:24]} Bf5 {[%clk 00:46:48]} {[%emt 00:00:12]}
57. b5 {[%clk 00:05:10]} {[%emt 00:00:16]} Kd3 {[%clk 00:47:10]} {[%emt
00:00:07]} 58. Ke1 {[%clk 00:05:18]} {[%emt 00:00:22]} Bg4 {[%clk 00:47:33]}
{[%emt 00:00:07]} 59. bxa6 {[%clk 00:05:33]} {[%emt 00:00:16]} bxa6 {[%clk
00:47:41]} {[%emt 00:00:22]} 60. a5 {[%clk 00:05:43]} {[%emt 00:00:20]} Bh4+
{[%clk 00:47:49]} {[%emt 00:00:21]} 0-1

[Event "2. Itzehoer Schach Open"]
[Site "Itzehoe, Germany"]
[Date "2023.04.29"]
[Round "1.16"]
[White "Fuhrmann, Åke"]
[Black "Krumschmidt, Michael"]
[Result "1-0"]
[TimeControl "90 min / 40 Züge + 30 min + 30 Sek pro Zug"]
[WhiteElo "1992"]
[BlackElo "1720"]

1. d4 {[%clk 01:30:57]} {[%emt 00:00:03]} Nf6 {[%clk 01:30:13]} {[%emt
00:00:48]} 2. c4 {[%clk 01:31:20]} {[%emt 00:00:05]} d6 {[%clk 01:30:34]}
{[%emt 00:00:10]} 3. Nc3 {[%clk 01:31:29]} {[%emt 00:00:22]} g6 {[%clk
01:30:01]} {[%emt 00:01:02]} 4. e4 {[%clk 01:31:48]} {[%emt 00:00:10]} Bg7
{[%clk 01:30:01]} {[%emt 00:00:30]} 5. Be2 {[%clk 01:32:08]} {[%emt 00:00:11]}
O-O {[%clk 01:28:21]} {[%emt 00:02:10]} 6. Be3 {[%clk 01:32:29]} {[%emt
00:00:09]} Nc6 {[%clk 01:27:18]} {[%emt 00:01:34]} 7. d5 {[%clk 01:32:35]}
{[%emt 00:00:24]} Ne5 {[%clk 01:17:43]} {[%emt 00:10:04]} 8. f4 {[%clk
01:32:57]} {[%emt 00:00:08]} Neg4 {[%clk 01:16:41]} {[%emt 00:01:32]} 9. Bc1
{[%clk 01:33:19]} {[%emt 00:00:08]} h5 {[%clk 01:01:40]} {[%emt 00:15:31]} 10.
Nf3 {[%clk 01:24:11]} {[%emt 00:09:38]} c6 {[%clk 00:56:27]} {[%emt 00:05:43]}
11. h3 {[%clk 01:21:05]} {[%emt 00:03:36]} Qb6 {[%clk 00:53:51]} {[%emt
00:03:06]} 12. hxg4 {[%clk 01:18:24]} {[%emt 00:03:12]} Nxg4 {[%clk 00:48:11]}
{[%emt 00:06:09]} 13. Rf1 {[%clk 01:16:22]} {[%emt 00:02:31]} Bf6 {[%clk
00:38:20]} {[%emt 00:10:22]} 14. Qb3 {[%clk 01:12:16]} {[%emt 00:04:37]} Qc5
{[%clk 00:36:48]} {[%emt 00:02:01]} 15. Na4 {[%clk 01:10:59]} {[%emt 00:01:47]}
Qa5+ {[%clk 00:36:43]} {[%emt 00:00:36]} 16. Bd2 {[%clk 01:11:06]} {[%emt
00:00:22]} Qc7 {[%clk 00:36:50]} {[%emt 00:00:22]} 17. Ng5 {[%clk 01:01:39]}
{[%emt 00:09:58]} Bd7 {[%clk 00:32:23]} {[%emt 00:04:56]} 18. Bxg4 {[%clk
00:58:49]} {[%emt 00:03:21]} Bxg4 {[%clk 00:31:44]} {[%emt 00:01:09]} 19. Be3
{[%clk 00:53:25]} {[%emt 00:05:54]} Bxg5 {[%clk 00:30:19]} {[%emt 00:01:55]} 20.
fxg5 {[%clk 00:53:47]} {[%emt 00:00:08]} e6 {[%clk 00:30:22]} {[%emt 00:00:27]}
21. Kf2 {[%clk 00:53:11]} {[%emt 00:01:06]} b5 {[%clk 00:29:35]} {[%emt
00:01:18]} 22. cxb5 {[%clk 00:52:28]} {[%emt 00:01:12]} cxb5 {[%clk 00:29:25]}
{[%emt 00:00:40]} 23. Nc3 {[%clk 00:51:31]} {[%emt 00:01:28]} b4 {[%clk
00:26:55]} {[%emt 00:02:59]} 24. Qxb4 {[%clk 00:49:45]} {[%emt 00:02:17]} Rab8
{[%clk 00:26:01]} {[%emt 00:01:23]} 25. Qa3 {[%clk 00:49:21]} {[%emt 00:00:54]}
exd5 {[%clk 00:25:22]} {[%emt 00:01:09]} 26. Nxd5 {[%clk 00:48:13]} {[%emt
00:01:39]} Qc2+ {[%clk 00:20:47]} {[%emt 00:05:04]} 27. Kg1 {[%clk 00:48:26]}
{[%emt 00:00:16]} Rxb2 {[%clk 00:19:29]} {[%emt 00:01:50]} 28. Rf2 {[%clk
00:48:42]} {[%emt 00:00:13]} Be2 {[%clk 00:12:14]} {[%emt 00:07:45]} 29. Nf6+
{[%clk 00:47:32]} {[%emt 00:01:41]} Kh8 {[%clk 00:12:05]} {[%emt 00:00:39]} 30.
Bd4 {[%clk 00:47:46]} {[%emt 00:00:15]} Rb1+ {[%clk 00:11:39]} {[%emt
00:00:55]} 31. Rxb1 {[%clk 00:48:09]} {[%emt 00:00:08]} Qxb1+ {[%clk 00:12:05]}
{[%emt 00:00:04]} 32. Kh2 {[%clk 00:48:29]} {[%emt 00:00:09]} Qd1 {[%clk
00:07:57]} {[%emt 00:04:38]} 33. Qb2 {[%clk 00:48:44]} {[%emt 00:00:16]} 1-0

[Event "2. Itzehoer Schach Open"]
[Site "Itzehoe, Germany"]
[Date "2023.04.29"]
[Round "1.25"]
[White "Aguike, Chidera"]
[Black "Rick, Niklas Corvin"]
[Result "1/2-1/2"]
[TimeControl "90 min / 40 Züge + 30 min + 30 Sek pro Zug"]
[WhiteElo "1450"]
[BlackElo "1672"]

1. e4 {[%clk 01:30:18]} {[%emt 00:00:42]} c5 {[%clk 01:30:02]} {[%emt
00:00:58]} 2. Nf3 {[%clk 01:30:33]} {[%emt 00:00:14]} d6 {[%clk 01:29:01]}
{[%emt 00:01:32]} 3. d4 {[%clk 01:30:15]} {[%emt 00:00:47]} cxd4 {[%clk
01:27:43]} {[%emt 00:01:49]} 4. Nxd4 {[%clk 01:29:24]} {[%emt 00:01:21]} Nf6
{[%clk 01:26:12]} {[%emt 00:02:01]} 5. Nc3 {[%clk 01:28:30]} {[%emt 00:01:24]}
a6 {[%clk 01:24:14]} {[%emt 00:02:29]} 6. Be2 {[%clk 01:27:56]} {[%emt
00:01:03]} e5 {[%clk 01:21:53]} {[%emt 00:02:51]} 7. Nb3 {[%clk 01:26:49]}
{[%emt 00:01:37]} Be7 {[%clk 01:20:36]} {[%emt 00:01:47]} 8. Be3 {[%clk
01:26:23]} {[%emt 00:00:56]} Be6 {[%clk 01:13:47]} {[%emt 00:07:18]} 9. Nd5
{[%clk 01:25:21]} {[%emt 00:01:33]} Nbd7 {[%clk 01:07:56]} {[%emt 00:06:22]} 10.
f3 {[%clk 01:20:02]} {[%emt 00:05:48]} O-O {[%clk 01:00:32]} {[%emt 00:07:54]}
11. g4 {[%clk 01:14:15]} {[%emt 00:06:17]} Rc8 {[%clk 00:51:48]} {[%emt
00:09:14]} 12. h4 {[%clk 01:09:48]} {[%emt 00:04:55]} Bxd5 {[%clk 00:48:53]}
{[%emt 00:03:26]} 13. exd5 {[%clk 01:09:28]} {[%emt 00:00:51]} Nb6 {[%clk
00:48:57]} {[%emt 00:00:26]} 14. Bxb6 {[%clk 01:08:10]} {[%emt 00:01:47]} Qxb6
{[%clk 00:48:30]} {[%emt 00:00:57]} 15. g5 {[%clk 01:07:51]} {[%emt 00:00:49]}
Nh5 {[%clk 00:47:06]} {[%emt 00:01:54]} 16. c4 {[%clk 01:06:41]} {[%emt
00:01:40]} Nf4 {[%clk 00:43:23]} {[%emt 00:04:14]} 17. Qd2 {[%clk 01:03:12]}
{[%emt 00:03:58]} Ng2+ {[%clk 00:37:20]} {[%emt 00:06:34]} 18. Kf1 {[%clk
01:03:17]} {[%emt 00:00:24]} Ne3+ {[%clk 00:36:54]} {[%emt 00:00:56]} 19. Ke1
{[%clk 01:03:18]} {[%emt 00:00:29]} Nxc4 {[%clk 00:36:48]} {[%emt 00:00:37]} 20.
Bxc4 {[%clk 01:03:33]} {[%emt 00:00:15]} Rxc4 {[%clk 00:37:05]} {[%emt
00:00:13]} 21. Rc1 {[%clk 01:00:18]} {[%emt 00:03:44]} Rfc8 {[%clk 00:33:30]}
{[%emt 00:04:06]} 22. Rxc4 {[%clk 00:59:06]} {[%emt 00:01:42]} Rxc4 {[%clk
00:33:35]} 23. h5 {[%clk 00:57:33]} {[%emt 00:02:27]} Rf4 {[%clk 00:29:13]}
{[%emt 00:04:53]} 24. g6 {[%clk 00:57:18]} {[%emt 00:00:43]} fxg6 {[%clk
00:26:39]} {[%emt 00:03:04]} 25. hxg6 {[%clk 00:57:30]} {[%emt 00:00:18]} h6
{[%clk 00:26:30]} {[%emt 00:00:40]} 26. Rf1 {[%clk 00:55:15]} {[%emt 00:02:45]}
Bh4+ {[%clk 00:25:28]} {[%emt 00:01:32]} 27. Kd1 {[%clk 00:55:32]} {[%emt
00:00:13]} Bg5 {[%clk 00:24:59]} {[%emt 00:00:59]} 28. Qc2 {[%clk 00:55:40]}
{[%emt 00:00:22]} Rf8 {[%clk 00:21:12]} {[%emt 00:04:16]} 29. Qf2 {[%clk
00:52:06]} {[%emt 00:04:03]} Qxf2 {[%clk 00:18:45]} {[%emt 00:02:59]} 30. Rxf2
{[%clk 00:52:23]} {[%emt 00:00:11]} e4 {[%clk 00:19:07]} {[%emt 00:00:09]} 31.
Ke2 {[%clk 00:52:24]} {[%emt 00:00:29]} Rxf3 {[%clk 00:18:30]} {[%emt
00:01:08]} 32. Rxf3 {[%clk 00:52:49]} {[%emt 00:00:05]} exf3+ {[%clk 00:18:46]}
{[%emt 00:00:13]} 33. Kxf3 {[%clk 00:53:16]} {[%emt 00:00:04]} b6 {[%clk
00:14:32]} {[%emt 00:04:44]} 34. Nd4 {[%clk 00:53:03]} {[%emt 00:00:42]} Bf6
{[%clk 00:14:10]} {[%emt 00:00:53]} 35. Nf5 {[%clk 00:53:18]} {[%emt 00:00:14]}
Be5 {[%clk 00:13:12]} {[%emt 00:01:29]} 36. b3 {[%clk 00:53:07]} {[%emt
00:00:41]} Kf8 {[%clk 00:12:50]} {[%emt 00:00:52]} 37. Kg4 {[%clk 00:52:35]}
{[%emt 00:01:00]} Ke8 {[%clk 00:12:11]} {[%emt 00:01:11]} 38. Kh5 {[%clk
00:50:59]} {[%emt 00:02:06]} b5 {[%clk 00:10:34]} {[%emt 00:02:07]} 39. Kg4
{[%clk 00:51:10]} {[%emt 00:00:18]} Kd7 {[%clk 00:09:36]} {[%emt 00:01:30]} 40.
Kh5 {[%clk 00:49:12]} {[%emt 00:02:27]} b4 {[%clk 00:07:55]} {[%emt 00:02:11]}
41. Ne3 {[%clk 00:48:49]} {[%emt 00:00:51]} Ke7 {[%clk 00:05:43]} {[%emt
00:02:44]} 42. Ng4 {[%clk 00:48:13]} {[%emt 00:01:03]} Bf4 {[%clk 00:04:16]}
{[%emt 00:02:00]} 43. Kh4 {[%clk 00:47:51]} {[%emt 00:00:51]} Bc1 {[%clk
00:03:26]} {[%emt 00:01:20]} 44. Kh5 {[%clk 00:47:42]} {[%emt 00:00:38]} Bb2
{[%clk 00:02:10]} {[%emt 00:01:47]} 45. Kh4 {[%clk 00:47:20]} {[%emt 00:00:50]}
Bd4 {[%clk 00:01:55]} {[%emt 00:00:47]} 46. Kh5 {[%clk 00:47:31]} {[%emt
00:00:18]} Kd7 {[%clk 00:01:33]} {[%emt 00:00:53]} 47. Nh2 {[%clk 00:45:30]}
{[%emt 00:02:30]} Kc7 {[%clk 00:30:17]} {[%emt 00:01:46]} 48. Nf3 {[%clk
01:15:11]} {[%emt 00:00:49]} Bf6 {[%clk 00:30:17]} {[%emt 00:00:31]} 49. Ne1
{[%clk 01:15:19]} {[%emt 00:00:21]} Bc3 {[%clk 00:29:31]} {[%emt 00:01:16]} 50.
Nd3 {[%clk 01:15:24]} {[%emt 00:00:25]} Kd8 {[%clk 00:27:51]} {[%emt 00:02:11]}
51. Nf2 {[%clk 01:15:13]} {[%emt 00:00:40]} a5 {[%clk 00:22:52]} {[%emt
00:05:30]} 52. Ne4 {[%clk 01:15:29]} {[%emt 00:00:13]} Kc7 {[%clk 00:22:12]}
{[%emt 00:01:10]} 53. Kg4 {[%clk 01:15:49]} {[%emt 00:00:09]} Kb6 {[%clk
00:21:00]} {[%emt 00:01:42]} 54. Kh5 {[%clk 01:16:08]} {[%emt 00:00:11]} Be5
{[%clk 00:20:59]} {[%emt 00:00:32]} 55. Kg4 {[%clk 01:16:28]} {[%emt 00:00:10]}
Kb5 {[%clk 00:21:01]} {[%emt 00:00:28]} 56. Kh5 {[%clk 01:16:44]} {[%emt
00:00:13]} a4 {[%clk 00:21:14]} {[%emt 00:00:17]} 57. Kg4 {[%clk 01:17:05]}
{[%emt 00:00:08]} axb3 {[%clk 00:21:17]} {[%emt 00:00:29]} 58. axb3 {[%clk
01:17:28]} {[%emt 00:00:06]} 1/2-1/2

[Event "2. Itzehoer Schach Open"]
[Site "Itzehoe, Germany"]
[Date "2023.04.29"]
[Round "1.20"]
[White "Trzcielinski, Jens"]
[Black "Neffgen, Klaus"]
[Result "1-0"]
[TimeControl "90 min / 40 Züge + 30 min + 30 Sek pro Zug"]
[WhiteElo "1693"]
[BlackElo "1533"]

1. e4 {[%clk 01:30:54]} {[%emt 00:00:04]} c6 {[%clk 01:30:53]} {[%emt
00:00:08]} 2. f4 {[%clk 01:30:29]} {[%emt 00:00:54]} d5 {[%clk 01:30:52]}
{[%emt 00:00:32]} 3. e5 {[%clk 01:30:37]} {[%emt 00:00:21]} Bf5 {[%clk
01:30:09]} {[%emt 00:01:14]} 4. d4 {[%clk 01:30:28]} {[%emt 00:00:38]} e6
{[%clk 01:29:49]} {[%emt 00:00:51]} 5. Nf3 {[%clk 01:30:35]} {[%emt 00:00:22]}
Bb4+ {[%clk 01:28:38]} {[%emt 00:01:42]} 6. c3 {[%clk 01:30:01]} {[%emt
00:01:04]} Ba5 {[%clk 01:27:46]} {[%emt 00:01:23]} 7. Bd3 {[%clk 01:28:39]}
{[%emt 00:01:51]} Bxd3 {[%clk 01:26:56]} {[%emt 00:01:20]} 8. Qxd3 {[%clk
01:29:03]} {[%emt 00:00:06]} Ne7 {[%clk 01:26:15]} {[%emt 00:01:12]} 9. O-O
{[%clk 01:27:39]} {[%emt 00:01:53]} Nd7 {[%clk 01:25:07]} {[%emt 00:01:38]} 10.
Nh4 {[%clk 01:24:19]} {[%emt 00:03:49]} O-O {[%clk 01:24:15]} {[%emt 00:01:23]}
11. Qg3 {[%clk 01:24:05]} {[%emt 00:00:44]} Re8 {[%clk 01:23:13]} {[%emt
00:01:32]} 12. f5 {[%clk 01:21:45]} {[%emt 00:02:49]} exf5 {[%clk 01:22:38]}
{[%emt 00:01:06]} 13. Nxf5 {[%clk 01:21:51]} {[%emt 00:00:24]} Nxf5 {[%clk
01:22:47]} {[%emt 00:00:21]} 14. Rxf5 {[%clk 01:22:12]} {[%emt 00:00:09]} Nf8
{[%clk 01:19:36]} {[%emt 00:03:41]} 15. Bg5 {[%clk 01:21:05]} {[%emt 00:01:36]}
Qd7 {[%clk 01:17:51]} {[%emt 00:02:16]} 16. Qf2 {[%clk 01:17:05]} {[%emt
00:04:29]} Re6 {[%clk 01:15:21]} {[%emt 00:03:00]} 17. Nd2 {[%clk 01:16:37]}
{[%emt 00:00:58]} Rae8 {[%clk 01:13:44]} {[%emt 00:02:09]} 18. Rf1 {[%clk
01:16:24]} {[%emt 00:00:42]} Bb6 {[%clk 01:00:13]} {[%emt 00:14:02]} 19. Rxf7
{[%clk 01:15:47]} {[%emt 00:01:06]} Qc8 {[%clk 01:00:36]} {[%emt 00:00:08]} 20.
Qg3 {[%clk 01:08:44]} {[%emt 00:07:31]} Ng6 {[%clk 00:58:11]} {[%emt 00:02:56]}
21. h4 {[%clk 01:05:40]} {[%emt 00:03:34]} Nxe5 {[%clk 00:56:29]} {[%emt
00:02:12]} 22. Bf6 {[%clk 01:03:30]} {[%emt 00:02:40]} Rxf6 {[%clk 00:50:10]}
{[%emt 00:06:49]} 23. Qxg7# {[%clk 01:03:03]} {[%emt 00:00:19]} 1-0

[Event "2. Itzehoer Schach Open"]
[Site "Itzehoe, Germany"]
[Date "2023.04.29"]
[Round "1.30"]
[White "Bartels, Jens"]
[Black "Eitel, Luc"]
[Result "1/2-1/2"]
[TimeControl "90 min / 40 Züge + 30 min + 30 Sek pro Zug"]
[WhiteElo "1589"]
[BlackElo "1383"]

1. Nf3 {[%clk 01:30:39]} {[%emt 00:00:19]} e6 {[%clk 01:30:19]} {[%emt
00:00:43]} 2. c4 {[%clk 01:30:09]} {[%emt 00:00:59]} Nf6 {[%clk 01:29:51]}
{[%emt 00:00:58]} 3. d4 {[%clk 01:29:24]} {[%emt 00:01:15]} d5 {[%clk
01:28:43]} {[%emt 00:01:38]} 4. Nc3 {[%clk 01:28:34]} {[%emt 00:01:20]} Be7
{[%clk 01:26:54]} {[%emt 00:02:18]} 5. Bf4 {[%clk 01:27:01]} {[%emt 00:02:03]}
c6 {[%clk 01:26:11]} {[%emt 00:01:13]} 6. e3 {[%clk 01:24:31]} {[%emt
00:02:59]} O-O {[%clk 01:25:40]} {[%emt 00:01:02]} 7. cxd5 {[%clk 01:22:58]}
{[%emt 00:02:04]} exd5 {[%clk 01:25:13]} {[%emt 00:00:55]} 8. Qc2 {[%clk
01:21:51]} {[%emt 00:01:37]} Re8 {[%clk 01:22:32]} {[%emt 00:03:12]} 9. Bd3
{[%clk 01:20:24]} {[%emt 00:01:57]} Nbd7 {[%clk 01:21:21]} {[%emt 00:01:41]} 10.
Ng5 {[%clk 01:12:25]} {[%emt 00:08:29]} Nf8 {[%clk 01:18:10]} {[%emt 00:03:41]}
11. O-O {[%clk 01:10:06]} {[%emt 00:02:48]} Bd6 {[%clk 01:17:34]} {[%emt
00:01:06]} 12. Bxd6 {[%clk 01:08:51]} {[%emt 00:01:46]} Qxd6 {[%clk 01:17:52]}
{[%emt 00:00:12]} 13. Bf5 {[%clk 01:06:45]} {[%emt 00:02:36]} h6 {[%clk
01:12:59]} {[%emt 00:05:23]} 14. Nf3 {[%clk 01:04:13]} {[%emt 00:03:02]} Bxf5
{[%clk 01:12:02]} {[%emt 00:01:27]} 15. Qxf5 {[%clk 01:04:17]} {[%emt
00:00:25]} Ng6 {[%clk 01:11:41]} {[%emt 00:00:51]} 16. h3 {[%clk 01:01:31]}
{[%emt 00:03:15]} Ne4 {[%clk 01:10:41]} {[%emt 00:01:32]} 17. Nxe4 {[%clk
00:59:31]} {[%emt 00:02:30]} Rxe4 {[%clk 01:08:36]} {[%emt 00:02:35]} 18. Nd2
{[%clk 00:59:15]} {[%emt 00:00:45]} Re6 {[%clk 01:08:33]} {[%emt 00:00:27]} 19.
a3 {[%clk 00:51:28]} {[%emt 00:08:24]} Rae8 {[%clk 01:04:20]} {[%emt 00:04:42]}
20. b4 {[%clk 00:49:42]} {[%emt 00:02:17]} Ne7 {[%clk 01:01:58]} {[%emt
00:02:48]} 21. Qf3 {[%clk 00:46:10]} {[%emt 00:04:05]} Rf6 {[%clk 01:00:51]}
{[%emt 00:01:38]} 22. Qe2 {[%clk 00:41:03]} {[%emt 00:05:37]} Nf5 {[%clk
00:58:16]} {[%emt 00:03:05]} 23. Nf3 {[%clk 00:38:18]} {[%emt 00:03:14]} Re4
{[%clk 00:54:24]} {[%emt 00:04:23]} 24. Qd3 {[%clk 00:35:51]} {[%emt 00:02:57]}
Nh4 {[%clk 00:42:12]} {[%emt 00:12:43]} 25. Ne5 {[%clk 00:34:28]} {[%emt
00:01:53]} Ng6 {[%clk 00:39:45]} {[%emt 00:02:56]} 26. f4 {[%clk 00:32:27]}
{[%emt 00:02:31]} Qe7 {[%clk 00:37:34]} {[%emt 00:02:38]} 27. Rac1 {[%clk
00:30:23]} {[%emt 00:02:38]} Nxe5 {[%clk 00:36:28]} {[%emt 00:01:36]} 28. dxe5
{[%clk 00:30:29]} {[%emt 00:00:24]} Rg6 {[%clk 00:35:39]} {[%emt 00:01:19]} 29.
Rf3 {[%clk 00:29:50]} {[%emt 00:01:09]} f6 {[%clk 00:32:11]} {[%emt 00:03:57]}
30. exf6 {[%clk 00:29:10]} {[%emt 00:01:10]} Rxf6 {[%clk 00:29:10]} {[%emt
00:03:32]} 31. Rc3 {[%clk 00:28:57]} {[%emt 00:00:42]} 1/2-1/2